bitfinex/quotes_ETHUSD_20251108
["timestamp","ask_amount","ask_price","bid_price","bid_amount"]
[1762624844451,5.37318234,3401.2,3400.9,0.001]
[1762624844748,10.11457887,3401.2,3400.9,0.001]
[1762624844953,11.8570662,3401.2,3400.9,0.001]
[1762624845151,12.3176662,3401.2,3400.9,0.001]
[1762624846129,11.88089095,3401.2,3400.9,0.001]
[1762624846946,12.3176662,3401.2,3400.9,0.001]
[1762624848843,11.88089095,3401.2,3400.9,0.001]
[1762624849768,3.34616153,3400.6,3400.5,0.001]
[1762624849921,10.53305523,3400.6,3400.5,0.001]
[1762624850122,10.05895523,3400.6,3400.5,0.001]
[1762624850330,10.05895523,3400.6,3400.5,0.4939]
[1762624850536,1.94012592,3400.6,3400.5,0.4939]
[1762624850749,1.94012592,3400.6,3400.5,0.9878]
[1762624852338,1.53462192,3400.6,3400.5,3.928544]
[1762624852536,1.53462192,3400.6,3400.5,4.61861776]
[1762624854165,1.68102192,3400.6,3400.5,4.61861776]
[1762624856569,1.68031512,3400.6,3400.5,0.9878]
[1762624856950,1.68031599,3400.6,3400.5,0.9878]
[1762624857145,1.68031599,3400.6,3400.5,3.928544]
[1762624857675,0.42060399,3400.6,3400.5,3.298344]
[1762624857970,0.42060399,3400.6,3400.5,0.3576]
[1762624859672,0.42060399,3400.6,3400.5,0.7152]
[1762624859877,0.82610799,3400.6,3400.5,0.7152]
[1762624860072,0.27420399,3400.6,3400.5,3.655944]
[1762624860278,0.42060399,3400.6,3400.5,3.655944]
[1762624861284,0.42060399,3400.6,3400.5,0.7152]
[1762624861521,0.4864,3402.5,3401.7,2.93962172]
[1762624861786,0.1464,3401.7,3401.6,2.93979303]
[1762624861960,0.4864,3402.5,3401.6,2.93979303]
[1762624862287,0.4864,3402.5,3401.8,2.93959851]
[1762624862288,0.405504,3402.4,3401.8,2.93959851]
[1762624862614,0.46114427,3402.7,3401.1,2.94022522]
[1762624862615,0.46114427,3402.7,3401.7,0.3576]
[1762624862890,0.007,3402.9,3402.6,0.3576]
[1762624863183,0.007,3402.9,3402.8,0.3576]
[1762624865606,0.007,3402.9,3402.8,3.65395631]
[1762624865975,0.007,3402.9,3402.8,0.7152]
[1762624866174,0.007,3402.9,3402.8,3.65395631]
[1762624872320,0.007,3402.9,3402.8,3.29635631]
[1762624872830,0.007,3402.9,3402.8,0.3576]
[1762624873013,0.902304,3402.9,3402.5,2.93901232]
[1762624873220,0.405504,3402.7,3402.6,2.93892905]
[1762624873592,0.27284537,3402.7,3402.6,2.93892905]
[1762624873793,0.551904,3402.6,3402.5,2.93899043]
[1762624874029,0.82474937,3402.6,3402.5,2.93899043]
[1762624874327,0.82474937,3402.6,3402.5,3.29659043]
[1762624876626,0.41924537,3402.6,3402.5,3.29659043]
[1762624876833,0.41924537,3402.6,3402.5,4.31645917]
[1762624877211,0.41924537,3402.6,3402.5,3.29659043]
[1762624877730,0.41928498,3402.6,3402.5,3.29659043]
[1762624879334,0.41928498,3402.6,3402.5,3.65419043]
[1762624882046,0.41928498,3402.6,3402.5,3.29659043]
[1762624883039,0.405504,3402.5,3402.4,2.93910181]
[1762624883233,0.67838898,3402.5,3402.4,2.93910181]
[1762624883449,0.82478898,3402.5,3402.3,2.93914926]
[1762624883639,0.27288498,3402.4,3402.3,2.93914926]
[1762624884742,0.405504,3402.3,3401.7,0.3576]
[1762624884947,1.24908498,3402.4,3401.7,0.3576]
[1762624884948,0.82478898,3402.2,3402.1,2.93936098]
[1762624885110,1.31458898,3402.2,3402.1,2.93936098]
[1762624885334,0.405504,3402.1,3402.0,2.93944738]
[1762624885535,1.16818898,3402.1,3402.0,2.93944738]
[1762624885989,0.67838898,3402.1,3402.0,3.29704738]
[1762624886487,0.67838898,3402.1,3402.0,2.93944738]
[1762624886985,1.16818898,3402.1,3402.0,2.93944738]
[1762624887338,1.16818898,3402.1,3401.9,2.93948969]
[1762624887538,0.82478898,3402.0,3401.9,2.93948969]
[1762624887769,1.31458898,3402.0,3401.9,2.93953378]
[1762624887980,1.80098898,3402.0,3401.9,2.93953378]
[1762624888164,0.405504,3401.9,3401.8,2.93958672]
[1762624888338,0.67838898,3401.9,3401.8,2.93958672]
[1762624888679,1.16818898,3401.9,3401.7,2.93970042]
[1762624888890,0.82478898,3401.8,3401.7,2.93970042]
[1762624889043,1.31458898,3401.8,3401.7,2.93970042]
[1762624889241,1.80098898,3401.8,3401.7,2.93970042]
[1762624889443,1.31458898,3401.8,3401.7,2.93970042]
[1762624889879,1.80098898,3401.8,3401.7,2.93970042]
[1762624890688,0.405504,3401.7,3401.6,2.93973367]
[1762624890857,0.67838898,3401.7,3401.6,2.93973367]
[1762624891054,1.16818898,3401.7,3401.6,2.93973367]
[1762624891993,1.16818898,3401.7,3401.6,3.29733367]
[1762624891994,0.27288498,3401.7,3401.6,3.29733367]
[1762624892143,0.27288498,3401.7,3401.6,5.07894268]
[1762624892572,0.27288498,3401.7,3401.6,3.29733367]
[1762624892782,0.27288498,3401.7,3401.6,3.65493367]
[1762624895061,0.405504,3402.2,3402.1,2.93936098]
[1762624895257,0.68056926,3402.2,3402.1,3.29696098]
[1762624895677,1.17866926,3402.2,3402.1,2.93936098]
[1762624897703,0.68056926,3402.2,3402.1,3.29696098]
[1762624900306,0.27506526,3402.2,3402.1,3.29696098]
[1762624900716,0.27706526,3402.2,3402.1,4.31396239]
[1762624901630,0.27706526,3402.2,3402.1,3.95636239]
[1762624902299,0.27706526,3402.2,3402.1,4.31396239]
[1762624904972,0.27706526,3402.2,3402.1,4.46036239]
[1762624905173,0.27706526,3402.2,3402.1,4.48975599]
[1762624905509,0.27706526,3402.2,3402.1,4.46036239]
[1762624911783,0.27706526,3402.2,3402.1,4.10276239]
[1762624912286,0.27706526,3402.2,3402.1,4.46036239]
[1762624913801,0.77366526,3402.2,3402.1,3.08576098]
[1762624914113,0.77366526,3402.2,3402.1,3.44336098]
[1762624914114,0.27706526,3402.2,3402.1,3.44336098]
[1762624914315,0.27706526,3402.2,3402.1,3.08576098]
[1762624915295,0.27706526,3402.2,3402.1,2.93936098]
[1762624915702,0.27706526,3402.2,3402.1,3.29696098]
[1762624921002,0.27706526,3402.2,3402.1,4.2943411]
[1762624921196,0.27706526,3402.2,3402.1,4.6519411]
[1762624922443,0.27706526,3402.2,3402.1,4.7689475]
[1762624924344,0.27706526,3402.2,3402.1,4.4113475]
[1762624924854,0.27706526,3402.2,3402.1,2.93936098]
[1762624927049,0.27706526,3402.2,3402.1,3.29696098]
[1762624927413,0.27706526,3402.2,3402.1,2.93936098]
[1762624928524,0.76786526,3402.2,3402.1,2.93936098]
[1762624928755,1.25036526,3402.2,3402.1,2.93936098]
[1762624933363,0.405504,3402.1,3401.2,0.3576]
[1762624933548,1.17189306,3402.0,3401.9,2.93953378]
[1762624933952,1.65439306,3402.0,3401.9,2.93953378]
[1762624934150,1.65439306,3402.0,3401.8,2.93958284]
[1762624934349,0.82268906,3401.9,3401.8,2.93958284]
[1762624934666,1.31348906,3401.9,3401.8,2.93958284]
[1762624938489,1.665216,3401.8,3400.8,4.2176]
[1762624938690,0.91278906,3401.7,3401.5,2.93987178]
[1762624938886,0.27558906,3401.6,3401.5,2.93987178]
[1762624939073,1.24888906,3401.6,3401.5,2.93987178]
[1762624939582,1.24888906,3401.6,3401.5,2.93987946]
[1762624939889,0.27558906,3401.6,3401.5,2.93987946]
[1762624940042,0.27558906,3401.6,3401.5,3.29747946]
[1762624940246,0.76638906,3401.6,3401.5,2.93987946]
[1762624941888,1.24888906,3401.6,3401.5,2.93987946]
[1762624942242,1.24888906,3401.6,3401.1,0.1464]
[1762624942448,0.4908,3401.4,3401.3,2.94005233]
[1762624942682,0.4908,3401.4,3400.6,0.3586]
[1762624942683,0.4908,3401.2,3401.0,2.94027037]
[1762624942946,0.27558906,3401.1,3401.0,2.94031167]
[1762624943278,0.27558906,3401.1,3401.0,3.52838802]
[1762624943470,0.27558906,3401.1,3401.0,3.88598802]
[1762624943985,0.27558906,3401.1,3401.0,4.24358802]
[1762624944450,0.27558906,3401.1,3401.0,3.88598802]
[1762624944652,0.27558906,3401.1,3401.0,3.29791167]
[1762624944951,0.27497604,3401.1,3401.0,3.29791167]
[1762624945700,0.27497604,3401.1,3401.0,2.94031167]
[1762624945997,0.27497604,3401.1,3401.0,3.29791167]
[1762624948013,0.27497604,3401.1,3401.0,3.65551167]
[1762624948187,0.27497604,3401.1,3401.0,4.31510608]
[1762624949652,0.27497604,3401.1,3401.0,3.95750608]
[1762624949854,0.27497604,3401.1,3401.0,4.31510608]
[1762624952705,0.27497604,3401.1,3401.0,4.46150608]
[1762624954615,0.27497604,3401.1,3401.0,4.10390608]
[1762624955712,0.27497604,3401.1,3401.0,3.74630608]
[1762624955880,0.75107604,3401.1,3401.0,3.08671167]
[1762624956407,0.75107604,3401.1,3401.0,2.94031167]
[1762624957320,1.21607604,3401.1,3401.0,2.94031167]
[1762624957490,1.21607604,3401.1,3400.8,2.94047456]
[1762624957678,0.5778,3400.9,3400.7,3.08693592]
[1762624957879,0.75107604,3400.8,3400.7,3.08693592]
[1762624958117,1.21607604,3400.8,3400.7,3.08693592]
[1762624959833,0.75107604,3400.8,3400.7,3.08693592]
[1762624960025,0.75107604,3400.8,3400.6,0.001]
[1762624960026,0.405504,3400.7,3400.6,0.001]
[1762624960234,1.91987924,3400.7,3400.6,0.001]
[1762624961313,6.12016229,3400.7,3400.6,0.001]
[1762624965433,3.17959124,3400.7,3400.6,0.001]
[1762624965941,6.12016229,3400.7,3400.6,0.001]
[1762624966432,3.17959124,3400.7,3400.6,0.001]
[1762624966638,6.12016229,3400.7,3400.6,0.001]
[1762624966802,3.17959124,3400.7,3400.6,0.001]
[1762624967329,6.12016229,3400.7,3400.6,0.001]
[1762624968938,3.17959124,3400.7,3400.6,0.001]
[1762624969113,3.17959124,3400.7,3400.6,2.94165753]
[1762624969114,1.53468804,3400.7,3400.6,2.94165753]
[1762624969314,1.53468804,3400.7,3400.6,0.001]
[1762624969536,2.48268804,3400.7,3400.6,0.001]
[1762624970153,2.48268804,3400.7,3400.6,2.94165753]
[1762624970449,2.48268804,3400.7,3400.6,0.001]
[1762624971151,1.98878804,3400.7,3400.6,0.001]
[1762624971550,2.39429204,3400.7,3400.6,0.001]
[1762624971864,0.002,3401.1,3401.0,2.94031167]
[1762624972015,0.002,3401.1,3401.0,0.1464]
[1762624972217,0.002,3401.1,3400.9,2.94034457]
[1762624972417,0.002,3401.1,3401.0,2.94031167]
[1762624972866,0.002,3401.1,3401.0,3.88598913]
[1762624974255,0.4561,3401.1,3401.0,3.52838913]
[1762624974462,0.002,3401.1,3401.0,2.94031167]
[1762624974667,0.002,3401.1,3401.0,3.29791167]
[1762624974837,0.002,3401.1,3401.0,3.65551167]
[1762624975735,0.002,3401.1,3401.0,3.68491478]
[1762624975931,0.002,3401.1,3401.0,4.86536474]
[1762624976940,0.002,3401.1,3401.0,4.83596163]
[1762624979447,0.002,3401.1,3401.0,6.09567363]
[1762624979664,0.002,3401.1,3401.0,6.21346567]
[1762624982061,0.002,3401.1,3401.0,6.35986567]
[1762624983769,0.27650523,3401.1,3401.0,6.35986567]
[1762624986472,0.27650523,3401.1,3401.0,5.10015367]
[1762624986882,0.27650523,3401.1,3401.0,4.74255367]
[1762624987265,0.27650523,3401.1,3401.0,4.62476163]
[1762624988591,0.74450523,3401.1,3401.0,3.08671167]
[1762624988793,1.24050523,3401.1,3401.0,3.08671167]
[1762624988960,1.24050523,3401.1,3400.9,2.94037363]
[1762624989166,1.23850523,3401.0,3400.8,3.08687047]
[1762624989368,0.74250523,3400.9,3400.8,3.08688459]
[1762624989576,1.23850523,3400.9,3400.8,0.1464]
[1762624989782,1.23850523,3400.9,3400.6,0.001]
[1762624989984,0.468,3400.7,3400.6,0.001]
[1762624990211,0.74250523,3400.7,3400.6,0.001]
[1762624990416,1.23850523,3400.7,3400.6,0.001]
[1762624990914,1.23850523,3400.7,3400.6,2.94165753]
[1762624992743,1.23850523,3400.7,3400.6,0.001]
[1762624992890,1.23850523,3400.7,3400.6,2.94165753]
[1762624993390,1.23850523,3400.7,3400.6,0.001]
[1762624993591,1.23850523,3400.7,3400.6,2.94165753]
[1762624993834,1.23850523,3400.7,3400.6,2.92217753]
[1762624994782,0.74250523,3400.7,3400.6,2.92217753]
[1762624995383,0.74250523,3400.7,3400.6,3.06857753]
[1762624995985,0.27450523,3400.7,3400.6,3.42617753]
[1762624996216,0.27450523,3400.7,3400.6,4.09873191]
[1762624997495,0.27450523,3400.7,3400.6,4.45633191]
[1762624997794,0.74250523,3400.7,3400.6,0.6444]
[1762624997992,1.23850523,3400.7,3400.6,0.498]
[1762624998221,1.23850523,3400.7,3400.5,0.001]
[1762624998421,1.64400923,3400.6,3400.5,0.001]
[1762624999388,1.64400923,3400.6,3400.5,2.941744]
[1762625000315,1.64448643,3400.6,3400.5,2.941744]
[1762625001001,0.74298243,3400.6,3400.5,2.941744]
[1762625001196,0.27498243,3400.6,3400.5,2.941744]
[1762625001432,0.74298243,3400.6,3400.5,2.941744]
[1762625001628,0.74297426,3400.6,3400.5,2.941744]
[1762625003930,0.27497426,3400.6,3400.5,3.89064753]
[1762625004136,0.27497426,3400.6,3400.5,4.24824753]
[1762625004636,0.27697426,3400.6,3400.5,3.89064753]
[1762625005897,0.74497426,3400.6,3400.5,2.941744]
[1762625006104,1.24097426,3400.6,3400.5,2.941744]
[1762625006733,0.74497426,3400.6,3400.5,2.941744]
[1762625007739,0.27697426,3400.6,3400.5,3.299344]
[1762625007939,0.27697426,3400.6,3400.5,3.445744]
[1762625008233,0.27697426,3400.6,3400.5,4.97944214]
[1762625008641,0.27697426,3400.6,3400.5,5.2564164]
[1762625008954,0.002,3401.0,3400.9,2.94039812]
[1762625009157,0.002,3401.0,3400.9,3.29799812]
[1762625009448,0.002,3401.0,3400.9,3.80199812]
[1762625009653,0.002,3401.0,3400.9,5.27700977]
[1762625010006,0.002,3401.0,3400.9,5.39481777]
[1762625010201,0.002,3401.3,3401.2,2.94013877]
[1762625010516,0.002,3401.3,3401.2,3.65533877]
[1762625010717,0.002,3401.3,3401.2,3.80173877]
[1762625010942,0.002,3401.3,3401.2,4.9469674]
[1762625011340,0.002,3401.3,3401.2,4.97636878]
[1762625011637,0.002,3401.3,3401.2,5.06475112]
[1762625013408,1e-08,3401.5,3401.4,3.29756589]
[1762625013602,1e-08,3401.5,3401.4,4.24408738]
[1762625013803,1e-08,3401.5,3401.4,4.57228773]
[1762625014846,1e-08,3401.5,3401.4,4.21468773]
[1762625015035,1e-08,3401.5,3401.4,3.08636589]
[1762625016143,0.98170001,3401.5,3401.4,3.08636589]
[1762625017305,0.48460001,3401.5,3401.4,3.08636589]
[1762625018939,0.98170001,3401.5,3401.4,3.08636589]
[1762625019354,0.48460001,3401.5,3401.4,3.08636589]
[1762625020022,1e-08,3401.5,3401.4,3.08636589]
[1762625020953,0.27457743,3401.5,3401.4,3.08636589]
[1762625022345,0.75917743,3401.5,3401.4,3.08636589]
[1762625022543,0.75917743,3401.5,3401.4,3.08736589]
[1762625027077,0.27457743,3401.5,3401.4,3.08736589]
[1762625028171,0.27457743,3401.5,3401.4,4.34171384]
[1762625029238,0.27457743,3401.5,3401.4,4.19531384]
[1762625029468,0.27457743,3401.5,3401.4,4.69931384]
[1762625029674,0.27457743,3401.5,3401.4,4.97389127]
[1762625032495,0.27457743,3401.5,3401.4,4.61629127]
[1762625038165,11.74970083,3401.5,3401.0,0.001]
[1762625038421,0.405504,3400.5,3400.2,0.001]
[1762625038620,0.4582,3400.3,3400.2,0.001]
[1762625038911,1.71784513,3400.3,3400.2,0.001]
[1762625039113,0.9439,3400.2,3399.2,0.0957]
[1762625039313,0.9439,3400.2,3399.1,5.0678597]
[1762625039314,1.53540044,3400.1,3399.1,0.005]
[1762625039538,5.34028091,3400.0,3399.1,0.005]
[1762625039682,1.665216,3399.9,3399.2,2.94181016]
[1762625039885,0.405504,3399.7,3399.2,2.94181016]
[1762625040195,0.405504,3399.7,3399.3,0.02941782]
[1762625040196,1.717912,3399.5,3399.3,0.02941782]
[1762625040382,2.47868656,3399.5,3399.2,2.94184953]
[1762625041109,2.47868656,3399.5,3399.3,2.94177631]
[1762625041328,2.47868656,3399.5,3399.4,2.94269559]
[1762625041624,2.47868656,3399.5,3399.4,0.001]
[1762625041924,2.72655522,3399.5,3399.4,0.001]
[1762625043087,2.72655522,3399.5,3399.4,2.94269559]
[1762625043088,2.47868656,3399.5,3399.4,2.94269559]
[1762625044741,1.99298656,3399.5,3399.4,2.94269559]
[1762625044900,1.53478656,3399.5,3399.4,3.31329559]
[1762625045288,2.02818656,3399.5,3399.4,2.94269559]
[1762625046127,2.02818656,3399.5,3399.4,0.001]
[1762625046128,2.73546522,3399.5,3399.4,0.001]
[1762625046744,2.73546522,3399.5,3399.4,2.94269559]
[1762625047054,2.73546522,3399.5,3399.4,0.001]
[1762625047210,2.48678656,3399.5,3399.4,0.001]
[1762625049469,2.63318656,3399.5,3399.4,0.001]
[1762625050251,5.98029962,3399.5,3399.4,0.001]
[1762625050462,0.405504,3398.7,3397.7,2.94316555]
[1762625050740,0.405504,3398.7,3397.0,0.3706]
[1762625050741,0.5551,3398.2,3397.3,2.9434635]
[1762625050912,0.7317583,3398.1,3397.9,2.94298967]
[1762625051112,0.2731583,3398.0,3397.9,2.94298967]
[1762625051312,1.2251583,3398.0,3397.9,2.94298967]
[1762625051518,1.2251583,3398.0,3397.7,2.94312208]
[1762625051726,0.6887,3397.8,3397.7,2.94312208]
[1762625052041,0.9618583,3397.8,3397.7,2.94312208]
[1762625052242,1.4204583,3397.8,3397.4,0.29434635]
[1762625052442,0.4934,3397.6,3397.5,2.94334069]
[1762625053946,0.0617,3398.2,3397.5,0.3706]
[1762625054162,0.27257273,3398.1,3397.9,2.94294176]
[1762625054315,0.27257273,3398.0,3397.9,2.9429942]
[1762625054514,0.76597273,3398.0,3397.9,2.9429942]
[1762625054861,1.22457273,3398.0,3397.8,2.94304958]
[1762625055042,0.45357273,3397.9,3397.8,2.94304958]
[1762625055247,1.40557273,3397.9,3397.8,2.94304958]
[1762625055967,0.27257273,3397.9,3397.8,2.94304958]
[1762625056173,0.76597273,3397.9,3397.8,2.94304958]
[1762625058432,0.27257273,3397.9,3397.8,3.90237836]
[1762625058957,0.27257273,3397.9,3397.8,2.94304958]
[1762625058958,0.76597273,3397.9,3397.8,2.94304958]
[1762625059746,0.27257273,3397.9,3397.8,3.31364958]
[1762625060559,0.27257273,3397.9,3397.8,3.83064958]
[1762625060722,0.27257273,3397.9,3397.8,3.46004958]
[1762625061155,0.27257273,3397.9,3397.8,3.08944958]
[1762625062591,0.76597273,3397.9,3397.8,3.08944958]
[1762625063194,0.27257273,3397.9,3397.8,3.08944958]
[1762625063876,0.4586,3398.2,3398.0,2.94290759]
[1762625064070,0.27286439,3398.1,3398.0,2.94290759]
[1762625064270,0.76626439,3398.1,3398.0,2.94290759]
[1762625065200,1.22486439,3398.1,3398.0,2.94290759]
[1762625066465,0.76626439,3398.1,3398.0,2.94290759]
[1762625068379,0.27286439,3398.1,3398.0,2.94290759]
[1762625068792,0.27286439,3398.1,3398.0,4.24046687]
[1762625069001,0.27286439,3398.1,3398.0,4.38686687]
[1762625069203,0.27286439,3398.1,3398.0,4.75746687]
[1762625069570,0.27286439,3398.1,3398.0,4.7280378]
[1762625071102,0.1464,3399.3,3399.1,2.94194129]
[1762625071297,0.4934,3399.2,3399.1,2.94194129]
[1762625071865,0.9654,3399.2,3399.1,2.94194129]
[1762625072285,0.9654,3399.2,3398.8,3.08859433]
[1762625072492,0.4607,3399.0,3398.9,2.94212833]
[1762625072885,0.1464,3399.3,3399.2,2.94186867]
[1762625073083,0.1464,3399.3,3399.1,2.9419329]
[1762625073285,0.1464,3399.3,3398.9,2.94211491]
[1762625073286,0.1464,3399.3,3399.2,2.94186867]
[1762625073482,0.1464,3399.3,3399.1,2.94190875]
[1762625073688,0.6184,3399.3,3399.1,2.94190875]
[1762625074003,0.6184,3399.3,3399.2,2.94186867]
[1762625074171,0.1464,3399.3,3399.2,3.31246867]
[1762625074367,0.6204,3399.8,3399.2,1.14244828]
[1762625074572,0.6204,3399.8,3399.7,2.941436]
[1762625074573,0.002,3399.8,3399.7,2.941436]
[1762625075276,0.002,3399.8,3399.7,3.312036]
[1762625075481,0.002,3399.8,3399.7,3.93739241]
[1762625080217,0.002,3399.8,3399.7,3.56679241]
[1762625080915,0.002,3399.8,3399.7,3.93739241]
[1762625082317,0.002,3399.8,3399.7,3.312036]
[1762625082806,0.9347,3399.8,3399.2,2.94186867]
[1762625083000,0.9347,3399.8,3399.5,2.94160906]
[1762625083001,0.4607,3399.6,3399.5,2.94160906]
[1762625083205,0.73475072,3399.6,3399.5,2.94160906]
[1762625083517,1.20675072,3399.6,3399.5,2.94160906]
[1762625084102,1.20675072,3399.6,3399.4,2.94163558]
[1762625084420,0.4521,3399.4,3399.3,2.94178213]
[1762625084722,0.72615072,3399.4,3399.3,2.94178213]
[1762625084924,1.21035072,3399.4,3399.3,2.94178213]
[1762625085732,1.21038153,3399.4,3399.3,2.94178213]
[1762625085909,0.72618153,3399.4,3399.3,2.94178213]
[1762625086121,0.27408153,3399.4,3399.3,2.94178213]
[1762625087260,0.27408153,3399.4,3399.3,3.31238213]
[1762625087439,0.27408153,3399.4,3399.3,3.93079261]
[1762625089526,0.27408153,3399.4,3399.3,4.30139261]
[1762625089837,0.72618153,3399.4,3399.3,3.08818213]
[1762625092651,1.21038153,3399.4,3399.3,3.08818213]
[1762625093050,1.21038153,3399.4,3399.3,2.94178213]
[1762625093442,1.21038153,3399.4,3399.1,0.1464]
[1762625093619,0.1484,3399.8,3399.4,2.94166227]
[1762625093821,0.72869366,3399.7,3399.3,2.94176303]
[1762625094025,0.42085165,3399.6,3399.2,2.94182719]
[1762625094227,0.4521,3399.2,3399.1,2.94195522]
[1762625094445,0.72655165,3399.2,3399.1,2.94195522]
[1762625094776,1.21075165,3399.2,3399.1,2.94195522]
[1762625095824,0.72655165,3399.2,3399.1,2.94195522]
[1762625096018,0.27445165,3399.2,3399.1,3.31255522]
[1762625096232,0.27445165,3399.2,3399.1,4.27629625]
[1762625096444,0.27445165,3399.2,3399.1,4.7638767]
[1762625097558,0.002,3399.8,3399.7,2.941436]
[1762625097769,0.27686127,3399.8,3399.7,3.458436]
[1762625098338,1.21316127,3399.8,3399.7,3.087836]
[1762625098634,1.21316127,3399.8,3399.6,0.1464]
[1762625098897,0.75906127,3399.7,3399.6,3.08792253]
[1762625099072,1.21116127,3399.7,3399.6,3.08792253]
[1762625099268,1.21116127,3399.7,3399.6,0.1464]
[1762625099475,1.21116127,3399.7,3399.3,0.1464]
[1762625099683,0.4521,3399.4,3399.3,2.94178213]
[1762625099877,0.72696127,3399.4,3399.3,2.94178213]
[1762625100058,1.21116127,3399.4,3399.3,2.94178213]
[1762625103804,0.72696127,3399.4,3399.3,2.94178213]
[1762625104101,1.21536127,3399.4,3399.3,2.94178213]
[1762625105065,0.72696127,3399.4,3399.3,2.94178213]
[1762625106186,1.21536127,3399.4,3399.1,0.1464]
[1762625106487,0.4667,3399.2,3399.1,2.94195522]
[1762625106800,0.74156127,3399.2,3398.8,0.1464]
[1762625107100,0.76397561,3399.1,3399.0,2.94204177]
[1762625107302,0.76397561,3399.1,3398.9,2.94210164]
[1762625107594,0.4881,3398.9,3398.8,3.08859597]
[1762625107799,0.76367561,3398.9,3398.8,3.08859597]
[1762625108093,1.25207561,3398.9,3398.8,3.08859597]
[1762625108287,1.43817561,3398.9,3398.8,3.08859597]
[1762625108893,0.94977561,3398.9,3398.8,3.08859597]
[1762625109301,1.43817561,3398.9,3398.8,3.08859597]
[1762625110199,0.76367561,3398.9,3398.8,3.08859597]
[1762625111703,0.27557561,3398.9,3398.8,4.06228599]
[1762625111904,0.94977561,3398.9,3398.8,3.08859597]
[1762625112491,0.76367561,3398.9,3398.8,3.08859597]
[1762625114108,0.27557561,3398.9,3398.8,3.82979597]
[1762625120446,0.002,3399.4,3399.3,2.94178213]
[1762625120626,0.002,3399.4,3399.3,3.31238213]
[1762625120943,0.002,3399.4,3399.3,4.41077131]
[1762625121522,0.002,3399.4,3399.3,4.38135349]
[1762625122944,0.002,3399.4,3399.3,4.75195349]
[1762625126846,0.002,3399.4,3399.3,4.38135349]
[1762625127050,0.002,3399.4,3399.3,4.01075349]
[1762625127229,0.002,3399.4,3399.3,4.38135349]
[1762625128248,0.002,3399.4,3399.3,3.86435349]
[1762625130752,0.002,3399.4,3399.3,4.23495349]
[1762625132657,0.27730044,3399.4,3399.3,3.86435349]
[1762625134160,0.27730044,3399.4,3399.3,4.23495349]
[1762625137378,0.27730044,3399.4,3399.3,3.86435349]
[1762625137561,0.27730044,3399.4,3399.3,2.94178213]
[1762625137562,0.74410044,3399.4,3399.3,2.94178213]
[1762625138278,1.21200044,3399.4,3399.3,3.08818213]
[1762625143683,0.74410044,3399.4,3399.3,3.08818213]
[1762625143886,0.74410044,3399.4,3399.0,2.94196425]
[1762625143887,1.21200044,3399.4,3399.0,2.94196425]
[1762625144052,5.55026418,3399.1,3399.0,2.94198582]
[1762625144380,7.08527662,3399.1,3399.0,2.94198582]
[1762625144585,7.53597662,3399.1,3399.0,2.94198582]
[1762625145056,1.259712,3399.0,3398.9,2.94312033]
[1762625145255,2.46481244,3399.0,3398.9,2.94312033]
[1762625146304,8.31429141,3399.0,3398.9,0.001]
[1762625146789,8.31455141,3399.0,3398.9,2.94312833]
[1762625147093,3.24338723,3399.0,3398.9,2.94312833]
[1762625149896,2.46507244,3399.0,3398.9,2.94312833]
[1762625150097,2.46507244,3399.0,3398.9,0.001]
[1762625150900,2.46507244,3399.0,3398.9,2.94312833]
[1762625151415,7.53623662,3399.0,3398.9,0.001]
[1762625151581,7.53623662,3399.0,3398.9,2.94312833]
[1762625151783,7.53623662,3399.0,3398.9,0.001]
[1762625152510,8.82169382,3399.0,3398.9,0.001]
[1762625152972,8.82169382,3399.0,3398.9,2.94312833]
[1762625154009,8.96809382,3399.0,3398.9,2.94312833]
[1762625154205,7.68263662,3399.0,3398.9,2.94312833]
[1762625154818,7.6821759,3399.0,3398.9,2.94312833]
[1762625157215,7.6821759,3399.0,3398.9,0.001]
[1762625157517,7.6821759,3399.0,3398.9,2.94312833]
[1762625159597,6.6059759,3399.0,3398.9,2.94312833]
[1762625159800,1.53481172,3399.0,3398.9,2.94312833]
[1762625160287,0.27509972,3399.0,3398.9,3.31372833]
[1762625160498,0.27509972,3399.0,3398.9,3.46012833]
[1762625161388,0.27509972,3399.0,3398.9,3.08952833]
[1762625163423,0.27709972,3399.0,3398.9,3.08952833]
[1762625164125,0.27709972,3399.0,3398.9,3.46012833]
[1762625165126,0.27709972,3399.0,3398.9,3.08952833]
[1762625166602,0.002,3399.0,3398.9,3.08952833]
[1762625166842,0.27746332,3399.0,3398.9,3.08952833]
[1762625168939,5.8464275,3399.0,3398.9,3.08952833]
[1762625169240,6.3290275,3399.0,3398.9,3.08952833]
[1762625169807,1.25786332,3399.0,3398.9,3.08952833]
[1762625170808,6.3290275,3399.0,3398.9,3.08952833]
[1762625172443,6.32937116,3399.0,3398.9,3.08952833]
[1762625173547,0.77560698,3399.0,3398.9,3.08952833]
[1762625174468,0.77567777,3399.0,3398.9,3.08952833]
[1762625175270,0.27787777,3399.0,3398.9,3.46012833]
[1762625175628,0.27787777,3399.0,3398.9,3.08952833]
[1762625176971,5.34904195,3399.0,3398.9,3.08952833]
[1762625177173,5.34904195,3399.0,3398.9,3.46012833]
[1762625178282,5.34904195,3399.0,3398.9,3.08952833]
[1762625180145,5.84684195,3399.0,3398.9,3.08952833]
[1762625181269,5.34904195,3399.0,3398.9,3.08952833]
[1762625183205,5.34904195,3399.0,3398.9,3.46012833]
[1762625183406,0.27787777,3399.0,3398.9,4.76518449]
[1762625183572,0.27787777,3399.0,3398.9,4.39458449]
[1762625184459,1e-08,3399.0,3398.9,4.61878449]
[1762625184679,1e-08,3399.0,3398.9,4.76518449]
[1762625188257,1e-08,3399.0,3398.9,7.86418449]
[1762625189100,1e-08,3399.0,3398.9,7.98203622]
[1762625190101,1e-08,3399.0,3398.9,4.88303622]
[1762625190261,1e-08,3399.0,3398.9,8.0114575]
[1762625190597,0.002,3399.4,3399.3,2.94178213]
[1762625190797,0.002,3399.4,3399.3,3.90074775]
[1762625191010,0.002,3399.4,3399.3,4.41774775]
[1762625191375,0.002,3399.9,3399.3,4.41774775]
[1762625191376,0.002,3399.9,3399.8,2.94134949]
[1762625191691,0.002,3399.9,3399.8,3.31194949]
[1762625192000,0.002,3399.9,3399.8,3.82894949]
[1762625192295,0.002,3399.9,3399.8,4.50598862]
[1762625192702,0.4622,3399.9,3399.8,3.76478862]
[1762625192871,1.1266,3399.9,3399.8,3.08774949]
[1762625196414,1.40156308,3399.9,3399.8,3.08774949]
[1762625199925,1.40156308,3399.9,3399.8,3.08874949]
[1762625204020,0.73716308,3399.9,3399.8,3.08874949]
[1762625211818,1.19286308,3399.9,3399.8,3.08874949]